lending/lending_fUSD_20240621
["ID","MTS","AMOUNT","RATE_DAILY","PERIOD"]
[330026060,1718951431722,-529.96,0.00017775,2]
[330026061,1718951431731,-159.90595749,0.00017899,2]
[330026062,1718951431740,-2000.0,0.00018,2]
[330026063,1718951431750,-217.96300349,0.00018,2]
[330026064,1718951431759,-7943.0,0.000181,3]
[330026065,1718951431768,-210.0,0.00018809,2]
[330026066,1718951431778,-2000.0,0.00019,2]
[330026067,1718951431787,-12994.59,0.00019339,2]
[330026068,1718951431796,-237.72,0.00019639,2]
[330026069,1718951431806,-4578.5,0.00019639,2]
[330026070,1718951431815,-285.33,0.00019681,2]
[330026071,1718951431825,-226.87,0.0001969,2]
[330026072,1718951431834,-297.91,0.00019698,2]
[330026073,1718951431843,-250.0,0.00019701,2]
[330026074,1718951431852,-438.28,0.00019752,2]
[330026075,1718951431864,-3275.63,0.00019777,2]
[330026076,1718951431874,-10000.0,0.00019795,2]
[330026077,1718951431883,-1840.11,0.00019795,2]
[330026078,1718951431893,-685.34,0.00019811,2]
[330026079,1718951431902,-556.74,0.00019816,30]
[330026080,1718951431911,-705.61,0.00019881,2]
[330026081,1718951431921,-2000.0,0.0002,2]
[330026082,1718951431931,-529.96,0.00020039,2]
[330026083,1718951431940,-499.99,0.00020129,2]
[330026084,1718951431950,-1000.0,0.00020148,2]
[330026085,1718951431960,-22536.4,0.00020168,2]
[330026086,1718951431970,-1000.0,0.00020203,2]
[330026087,1718951431979,-1000.0,0.00020258,2]
[330026088,1718951431988,-2781.79,0.00020313,2]
[330026089,1718951431998,-1000.0,0.00020313,2]
[330026090,1718951432007,-272.54,0.00020329,2]
[330026091,1718951432017,-178.2,0.00020347,2]
[330026092,1718951432026,-200.0,0.00020368,2]
[330026093,1718951432036,-1000.0,0.00020369,2]
[330026094,1718951432045,-250.0,0.00020374,2]
[330026095,1718951432054,-1000.0,0.00020424,2]
[330026096,1718951432064,-1000.0,0.00020479,2]
[330026097,1718951432073,-1000.0,0.00020534,2]
[330026098,1718951432082,-491.8,0.00020537,2]
[330026099,1718951432091,-1626.12,0.00020577,2]
[330026100,1718951432101,-1000.0,0.0002059,2]
[330026101,1718951432115,-1000.0,0.00020645,2]
[330026103,1718951432124,-293.0,0.0002069,2]
[330026105,1718951432134,-1000.0,0.000207,2]
[330026107,1718951432143,-1000.0,0.00020755,2]
[330026109,1718951432153,-1067.0,0.00020781,2]
[330026111,1718951432162,-5164.0,0.00020781,2]
[330026113,1718951432172,-1321.48,0.00020781,2]
[330026115,1718951432183,-290.0,0.00020781,2]
[330026117,1718951432194,-1000.0,0.00020811,2]
[330026119,1718951432203,-1000.0,0.00020866,2]
[330026121,1718951432212,-1000.0,0.00020919,2]
[330026122,1718951432222,-1000.0,0.00020921,2]
[330026123,1718951432231,-1000.0,0.00020976,2]
[330026124,1718951432241,-2000.0,0.00021,2]
[330026125,1718951432251,-1000.0,0.00021032,2]
[330026126,1718951432260,-1000.0,0.00021087,2]
[330026127,1718951432270,-1000.0,0.00021142,2]
[330026128,1718951432279,-152.0,0.00021159,3]
[330026129,1718951432290,-167.0,0.00021191,2]
[330026130,1718951432301,-1000.0,0.00021197,2]
[330026131,1718951432310,-180.0,0.00021655,2]
[330026132,1718951432320,-9283.1842,0.0002173,2]
[330026133,1718951432330,-151.0,0.00021799,3]
[330026134,1718951432340,-1000.0,0.000219,2]
[330026135,1718951432350,-500.0,0.00021917,2]
[330026136,1718951432360,-185.46,0.00021918,2]
[330026137,1718951432370,-413.85,0.00021918,2]
[330026138,1718951432380,-2001.74,0.00021918,2]
[330026139,1718951432389,-172.13,0.00021985,2]
[330026140,1718951432399,-10304.39303884,0.00022,2]
[330026141,1718951432447,-4678.87312068,0.00022,2]
[330026142,1718951432457,-2000.0,0.00022,2]
[330026143,1718951432467,-156.44516309,0.00022034,2]
[330026144,1718951432476,-153.95990553,0.00022039,2]
[330026145,1718951432486,-155.09496173,0.00022058,2]
[330026146,1718951432496,-515.79478978,0.00022091,2]
[330026147,1718951432506,-515.79478978,0.00022154,2]
[330026148,1718951432517,-151.93663302,0.00022167,2]
[330026149,1718951432526,-500.0,0.00022191,3]
[330026150,1718951432535,-779.8575,0.00022239,2]
[330026151,1718951432545,-905.4644,0.00022239,2]
[330026152,1718951432555,-150.62551863,0.00022251,2]
[330026153,1718951432564,-152.08926531,0.00022264,2]
[330026154,1718951432574,-176.77024669,0.00022275,2]
[330026155,1718951432583,-515.79478978,0.0002228,2]
[330026156,1718951432594,-529.96,0.00022303,2]
[330026157,1718951432604,-153.95990553,0.00022306,2]
[330026158,1718951432614,-171.33942291,0.0002233,2]
[330026159,1718951432623,-42446.20295308,0.00022339,2]
[330026160,1718951432637,-858.16390953,0.00022339,2]
[330026161,1718951432649,-15321.1287449,0.00022339,2]
[330026162,1718951432662,-7215.10767295,0.00022339,2]
[330026163,1718951432710,-113951.14821954,0.00022339,2]
[330026164,1718951432720,-155.09496173,0.00022341,2]
[330026165,1718951432729,-152.34007048,0.00022356,2]
[330026166,1718951432739,-151.37009716,0.00022359,2]
[330026167,1718951432749,-154.27131395,0.00022365,2]
[330026168,1718951432759,-154.51634385,0.00022371,2]
[330026169,1718951432769,-155.09496173,0.00022389,2]
[330026170,1718951432779,-151.0,0.00022394,4]
[330026171,1718951432789,-150.62551863,0.0002244,2]
[330026172,1718951432798,-151.93663302,0.0002244,2]
[330026173,1718951432809,-153.95990553,0.00022448,2]
[330026174,1718951432819,-153.95990553,0.0002245,2]
[330026175,1718951432829,-150.62551863,0.0002246,2]
[330026176,1718951432839,-152.26060601,0.00022463,2]
[330026177,1718951432849,-500.0,0.00022465,4]
[330026178,1718951432860,-154.23724616,0.00022478,2]
[330026179,1718951432869,-152.08926531,0.00022513,2]
[330026180,1718951432879,-527.90559543,0.0002253,2]
[330026181,1718951432892,-151.93663302,0.00022532,2]
[330026182,1718951432902,-1840.11,0.00022535,2]
[330026183,1718951432912,-153.95990553,0.00022546,2]
[330026184,1718951432921,-153.37075361,0.00022572,2]
[330026185,1718951432931,-152.34007048,0.00022603,2]
[330026186,1718951432940,-153.03870653,0.00022624,2]
[330026187,1718951432949,-219.0,0.0002266,2]
[330026188,1718951432959,-153.03870653,0.00022681,2]
[330026189,1718951432968,-1323.62599236,0.00022682,2]
[330026190,1718951432978,-515.79478978,0.00022683,2]
[330026191,1718951432987,-155.36348854,0.00022703,2]
[330026192,1718951433001,-500.0,0.00022739,5]
[330026193,1718951433011,-153.37075361,0.00022791,2]
[330026194,1718951433025,-1000.0,0.00022806,2]
[330026195,1718951433037,-500.0,0.00022806,2]
[330026196,1718951433047,-153.95990553,0.00022807,2]
[330026197,1718951433058,-153.95990553,0.00022834,2]
[330026198,1718951433067,-150.62551863,0.00022862,2]
[330026199,1718951433076,-154.27131395,0.00022869,2]
[330026200,1718951433086,-151.0,0.00022872,2]
[330026201,1718951433095,-151.93663302,0.00022888,2]
[330026202,1718951433113,-5731.68223514,0.0002289,2]
[330026203,1718951433128,-192.67903676,0.0002289,2]
[330026204,1718951433137,-187.33012332,0.0002289,2]
[330026205,1718951433147,-323.26850622,0.0002289,2]
[330026206,1718951433157,-656.51371243,0.0002289,2]
[330026207,1718951433166,-10994.0339,0.0002289,2]
[330026208,1718951433176,-300.0,0.0002289,2]
[330026209,1718951433187,-441.7366,0.0002289,2]
[330026210,1718951433198,-160.0,0.000229,2]
[330026211,1718951433209,-160.0,0.000229,2]
[330026212,1718951433219,-515.79478978,0.00022904,2]
[330026213,1718951433229,-151.37009716,0.00022921,2]
[330026214,1718951433238,-150.62551863,0.00022931,2]
[330026215,1718951433249,-515.79478978,0.00022934,2]
[330026216,1718951433259,-167.0,0.0002294,2]
[330026217,1718951433269,-515.79478978,0.0002294,2]
[330026218,1718951433279,-152.08926531,0.00022948,2]
[330026219,1718951433289,-186.70042845,0.0002298,2]
[330026220,1718951433301,-2000.0,0.00022989,2]
[330026221,1718951433309,-2000.0,0.00022989,2]
[330026222,1718951433319,-2000.0,0.00022989,2]
[330026223,1718951433328,-2000.0,0.00022989,2]
[330026224,1718951433339,-2000.0,0.00022989,2]
[330026225,1718951433348,-2000.0,0.00022989,2]
[330026226,1718951433576,-2000.0,0.00022989,2]
[330026227,1718951433615,-2000.0,0.00022989,2]
[330026228,1718951433624,-2000.0,0.00022989,2]
[330026229,1718951433635,-2000.0,0.00022989,2]
[330026230,1718951433646,-3000.0,0.00022989,7]
[330026231,1718951433656,-1990.62,0.00022989,7]
[330026232,1718951433665,-166.35902392,0.0002299,2]
[330026233,1718951433675,-14047.11189281,0.0002299,2]
[330026234,1718951433684,-374446.14593919,0.0002299,7]
[330026235,1718951433696,-2820.0,0.0002299,7]
[330026239,1718951437836,-1989.47898931,0.00020781,2]
[330026240,1718951437847,-3638.00095113,0.00020781,2]
[330026241,1718951437858,-15804.73164907,0.00020781,2]
[330026242,1718951437871,-6483.51839845,0.00020781,2]
[330026243,1718951438090,-3745.797088,0.00020781,2]
[330026246,1718951438103,-1008.61726376,0.00020781,2]
[330026248,1718951438119,-2516.30847202,0.00020781,2]
[330026250,1718951438131,-668.73878978,0.00020781,2]
[330026252,1718951438142,-2277.80839848,0.00020781,2]
[330026254,1718951438153,-542.8576338,0.00022602,2]
[330026256,1718951438163,-200.99389634,0.0002299,7]
[330026258,1718951438174,-32762.05394481,0.0002299,7]
[330026259,1718951438189,-4272.26535015,0.0002299,7]
[330026415,1718951440060,-515.37748105,0.00020781,2]
[330026417,1718951440072,-348.49967892,0.00020781,2]
[330026420,1718951440084,-791.27084003,0.00020781,2]
[330026421,1718951440093,-1741.65315333,0.0002299,7]
[330026424,1718951440111,-5060.62730203,0.0002299,7]
[330026426,1718951440124,-33276.14929742,0.0002299,7]
[330026428,1718951440136,-696.2,0.0002299,7]
[330026440,1718951440255,-4896.92,0.0002299,7]
[330026442,1718951440268,-9313.40183694,0.0002299,7]
[330026444,1718951440280,-2854.48132401,0.0002299,7]
[330026446,1718951440292,-352.75909744,0.0002299,7]
[330026449,1718951440304,-719.26763437,0.0002299,7]
[330026451,1718951440316,-289855.13316222,0.0002299,7]
[330026467,1718951440470,-117182.03944402,0.0002299,7]
[330026470,1718951440483,-479.01604256,0.0002299,7]
[330026472,1718951440494,-790.82196796,0.0002299,7]
[330026474,1718951440506,-331.75000023,0.0002299,7]
[330026476,1718951440517,-1290.77256158,0.0002299,7]
[330026727,1718951442946,-880.36175698,0.0002299,7]
[330026729,1718951442959,-500.0,0.0002299,7]
[330026732,1718951442971,-593.46637594,0.0002299,7]
[330026734,1718951442983,-2310.4004753,0.0002299,7]
[330026736,1718951442995,-1881.315,0.0002299,7]
[330026738,1718951443007,-977.00774141,0.0002299,7]
[330026755,1718951443167,-657.03544883,0.0002299,7]
[330026758,1718951443179,-416.21012772,0.0002299,7]
[330026760,1718951443191,-524.50138026,0.0002299,7]
[330026913,1718951446025,-500.0,0.0002299,7]
[330026914,1718951446249,-1160.28479229,0.0002299,7]
[330027195,1718951542580,2373.53052738,0.00013999,2]
[330027196,1718951624109,46023.85803187,0.00014,2]
[330027540,1718952451338,-1001.45891747,0.0001295,2]
[330027543,1718952451361,-300.0,0.00012979,2]
[330027545,1718952451383,-80494.25906092,0.0001298,2]
[330027547,1718952451405,-7743.33113399,0.0001308,2]
[330027549,1718952451426,-155.0,0.00013789,2]
[330027551,1718952451450,-677.54086952,0.000139,2]
[330027553,1718952451474,-162.53122664,0.000139,2]
[330027555,1718952451497,-195390.04269146,0.00014,2]
[330027663,1718952632327,-207.66031569,0.00013698,2]
[330027664,1718952632338,-174.56450957,0.000139,2]
[330027665,1718952632347,-162.53122664,0.000139,2]
[330027666,1718952632357,-213.70458006,0.00014,2]
[330027667,1718952632368,-1353.88104019,0.00014,2]
[330027668,1718952632379,-8620.43,0.00014,2]
[330027669,1718952632391,-985.42,0.00014,2]
[330027670,1718952632402,-7215.10767295,0.00014,2]
[330027671,1718952632414,-500.0,0.00014,2]
[330027672,1718952632426,-873.0,0.00014,2]
[330027674,1718952632651,-328.64556,0.00014,2]
[330027676,1718952632663,-1671.32115809,0.00014,2]
[330027678,1718952632675,-75428.96700321,0.00014,2]
[330027703,1718952638230,-2799.3000199,0.00014,2]
[330027704,1718952638242,-1107.98065498,0.00014,2]
[330027705,1718952638254,-2412.26395544,0.00014,2]
[330027706,1718952638265,-815.23057093,0.00014,2]
[330027707,1718952638277,-1924.09839103,0.00014,2]
[330027708,1718952638288,-8208.53520196,0.00014,2]
[330027709,1718952638299,-2953.27344085,0.00014,2]
[330027710,1718952638311,-20413.25589937,0.00014,2]
[330027711,1718952638322,-1451.33807564,0.00014,2]
[330027712,1718952638531,-4677.9289797,0.00014,2]
[330027713,1718952639289,-39730.59015485,0.00014,2]
[330027714,1718952639302,-3799.123425,0.00014,2]
[330027715,1718952639315,-14778.235088,0.00014,2]
[330027720,1718952640428,-9.968e-05,0.00014,2]
[330028010,1718952643299,-2224.15724427,0.00014,2]
[330028011,1718952643311,-1079.31918,0.00014,2]
[330028012,1718952643323,-675434.72370366,0.00014,2]
[330028013,1718952643335,-340.67650469,0.00014,2]
[330028014,1718952643347,-3308.73450718,0.00014,2]
[330028016,1718952643359,-35370.04434617,0.00014,2]
[330028023,1718952643633,-7180.0,0.00014,2]
[330028024,1718952643645,-684.85547295,0.00014,2]
[330028058,1718952646392,-308.25,0.00014,2]
[330028059,1718952646405,-534.79419597,0.00014,2]
[330028060,1718952646418,-1946.2076772,0.00014,2]
[330028061,1718952646431,-2506.31174187,0.00014,2]
[330028062,1718952646443,-344.47983131,0.00014,2]
[330028063,1718952646458,-655.83301,0.00014,2]
[330028150,1718953832355,-293.43812873,0.00011121,2]
[330028151,1718953832367,-3968.22426953,0.00011121,2]
[330028152,1718953832380,-191.0639971,0.00011121,2]
[330028153,1718953832390,-415.49090939,0.00013803,2]
[330028154,1718953832405,-384.09870792,0.00013809,2]
[330028156,1718953832414,-309.83,0.0001389,3]
[330028159,1718953832423,-150.0,0.00013899,2]
[330028161,1718953832436,-300.0,0.00013899,2]
[330028163,1718953832446,-834.05471555,0.000139,2]
[330028165,1718953832455,-1657.42131907,0.000139,2]
[330028167,1718953832467,-2470.0844031,0.000139,2]
[330028169,1718953832648,-287.89476307,0.000139,2]
[330028171,1718953832659,-1515.33623156,0.000139,2]
[330028173,1718953832668,-162.53122664,0.000139,2]
[330028174,1718953832679,-1063.39824218,0.000139,2]
[330028175,1718953832688,-209.98252522,0.000139,2]
[330028176,1718953832697,-174.56450957,0.000139,2]
[330028177,1718953832707,-580.81581894,0.000139,2]
[330028185,1718953838417,-505.85919085,0.000139,2]
[330028187,1718953838427,-1086.67500979,0.000139,2]
[330028188,1718953838437,-177.26989354,0.0001399,3]
[330028189,1718953838449,-6637.10272302,0.0001399,3]
[330028190,1718953838461,-157.62738344,0.0001399,3]
[330028191,1718953838470,-1662.71,0.0001399,2]
[330028192,1718953838480,-2151.02549989,0.0001399,2]
[330028193,1718953838701,-837.02009285,0.0001399,2]
[330028194,1718953838712,-475.6978813,0.0001399,2]
[330028195,1718953838722,-475.6978813,0.0001399,2]
[330028196,1718953838732,-475.6978813,0.0001399,2]
[330028198,1718953838742,-1255770.36657956,0.00014,2]
[330028200,1718953838754,-600.0,0.00014,2]
[330028202,1718953838765,-580.4,0.00014,2]
[330028205,1718953838777,-2603.10643675,0.00014,2]
[330028207,1718953838789,-3210.79791008,0.00014,2]
[330028209,1718953838800,-771.65526251,0.00014,2]
[330028372,1718953840489,-4569.0001021,0.00014,2]
[330028373,1718953840501,-27353.33808669,0.00014,2]
[330028375,1718953840512,-1555.73494035,0.00014,2]
[330028377,1718953840525,-1000.0,0.00014,2]
[330028490,1718953843720,-1176696.03148009,0.00014,2]
[330028491,1718953843736,-491.2647252,0.00014,2]
[330028492,1718953843749,-460.32635449,0.00014,2]
[330028493,1718953843762,-307.74597549,0.00014,2]
[330028494,1718953843775,-4053.55604223,0.00014,2]
[330028740,1718953846592,-4882.54335746,0.00014,2]
[330028742,1718953846604,-1311.84,0.00014,2]
[330028987,1718954525116,4780.26803276,0.00010933,2]
[330028998,1718954925597,-525.42941535,0.00013027,2]
[330028999,1718954925618,-2061.38555232,0.00013027,2]
[330029000,1718954925638,-427.21293137,0.00013699,2]
[330029001,1718954925657,-382.40578465,0.00013791,2]
[330029002,1718954925678,-3100.89364123,0.00013859,2]
[330029003,1718954925697,-300.0,0.00013898,2]
[330029004,1718954925717,-300.0,0.00013898,2]
[330029005,1718954925738,-150.0,0.00013899,2]
[330029006,1718954925758,-300.0,0.00013899,2]
[330029007,1718954925778,-2452.67267508,0.00013899,2]
[330029016,1718955034254,-339.39026201,0.00013079,2]
[330029017,1718955034264,-151.16200987,0.00013899,2]
[330029018,1718955034274,-2123.5481165,0.000139,2]
[330029019,1718955034283,-440.44361483,0.000139,2]
[330029020,1718955034296,-516.61480315,0.000139,2]
[330029021,1718955034307,-330.02430778,0.000139,2]
[330029022,1718955034318,-150.0,0.00013999,2]
[330029023,1718955034331,-1112.79830262,0.00014,2]
[330029024,1718955034343,-4615.13461449,0.00014,2]
[330029025,1718955034356,-4462.52367967,0.00014,2]
[330029026,1718955034372,-2267.92727332,0.00014,2]
[330029027,1718955034383,-1768.47672408,0.00014,2]
[330029028,1718955034393,-517.9614323,0.00014,2]
[330029029,1718955034406,-820.87408869,0.00014,2]
[330029030,1718955034417,-365.23815023,0.00014,2]
[330029031,1718955034428,-325.09234905,0.00014,2]
[330029032,1718955034440,-2154.86734783,0.00014,2]
[330029033,1718955034453,-812.07191515,0.00014,2]
[330029034,1718955034469,-637356.68728034,0.00014,2]
[330029035,1718955034480,-1094.6407865,0.00014,2]
[330029059,1718955034880,-404.0000001,0.00014,2]
[330029061,1718955034891,-326.34,0.00014,2]
[330029063,1718955034903,-420.0,0.00014,2]
[330029065,1718955034915,-131466.93822555,0.00014,2]
[330029067,1718955034926,-74202.18914175,0.00014,2]
[330029070,1718955034937,-1582.96004851,0.00014,2]
[330029072,1718955034948,-9109.98551208,0.00014,2]
[330029074,1718955034959,-52737.63547332,0.00014,2]
[330029076,1718955034971,-935.93930894,0.00014,2]
[330029078,1718955034983,-919.32000046,0.00014,2]
[330029081,1718955034994,-630.85,0.00014,2]
[330029083,1718955035005,-25888.81573891,0.00014,2]
[330029085,1718955035017,-6728.94505261,0.00014,2]
[330029087,1718955035028,-668.36727175,0.00014,2]
[330029482,1718955039415,-2263.62048144,0.00014,2]
[330029484,1718955039433,-6836.84294055,0.00014,2]
[330029528,1718955039852,-1592.65686539,0.00014,2]
[330029530,1718955039870,-398.42394123,0.00014,2]
[330029533,1718955039892,-5080.1458687,0.00014,2]
[330029536,1718955039910,-6037.91160832,0.00014,2]
[330029539,1718955039929,-466.04665455,0.00014,2]
[330029542,1718955039947,-2183.16426548,0.00014,2]
[330029545,1718955039966,-34233.58916488,0.00014,2]
[330029547,1718955039984,-298.69613393,0.00014,2]
[330029599,1718955041042,-1356.0,0.00014,2]
[330029602,1718955041060,-439.015,0.00014,2]
[330029604,1718955041077,-2107.86426795,0.00014,2]
[330029607,1718955041094,-3117.3830959,0.00014,2]
[330029637,1718955041378,-43133.93137925,0.00014,2]
[330029640,1718955041396,-8976.70660716,0.00014,2]
[330029643,1718955041414,-8947.21879473,0.00014,2]
[330029646,1718955041431,-8943.78386462,0.00014,2]
[330029649,1718955041446,-9077.54866152,0.00014,2]
[330029651,1718955041463,-8943.84023489,0.00014,2]
[330029847,1718955043934,-854.210001,0.00014,2]
[330029848,1718955043946,-162735.81658553,0.00014,2]
[330029849,1718955043955,-2000.0,0.00014,2]
[330029850,1718955043964,-200.0,0.00014,2]
[330029851,1718955043974,-2835.73944,0.00014,2]
[330029852,1718955043984,-1000.08352058,0.00014,2]
[330029853,1718955043994,-499.99,0.00014,2]
[330029854,1718955044004,-3989.06,0.00014105,2]
[330029855,1718955044014,-2123.54811645,0.00014717,2]
[330029856,1718955044023,-938.94,0.00014717,2]
[330029857,1718955044032,-957.05841789,0.00014899,2]
[330029858,1718955044041,-4780.26803276,0.00014907,2]
[330029859,1718955044050,-5973.0,0.00014908,2]
[330029860,1718955044060,-9999.99,0.00014963,2]
[330029861,1718955044070,-532.48747156,0.0001505,2]
[330029862,1718955044079,-1647.91910054,0.00015052,2]
[330029863,1718955044089,-493.47,0.00015053,2]
[330029864,1718955044099,-2123.54811645,0.00015535,2]
[330029865,1718955044109,-957.05841789,0.00015898,2]
[330029866,1718955044118,-2123.54811645,0.00016352,2]
[330029867,1718955044129,-170.76,0.00016796,2]
[330029868,1718955044139,-838.51,0.00016834,2]
[330029869,1718955044149,-773.64,0.00016868,2]
[330029870,1718955044159,-6120.21,0.00016892,2]
[330029871,1718955044169,-957.05841789,0.00016897,2]
[330029872,1718955044178,-344.53,0.00016922,2]
[330029873,1718955044187,-2152.87,0.00016925,2]
[330029875,1718955044197,-250.0,0.00016929,2]
[330029877,1718955044207,-1627.12,0.00016953,2]
[330029879,1718955044216,-533.27,0.00016999,2]
[330029881,1718955044227,-1000.0,0.00017,2]
[330029883,1718955044236,-250.0,0.00017016,2]
[330029885,1718955044245,-192.84,0.00017082,2]
[330029887,1718955044255,-1000.0,0.0001709,2]
[330029889,1718955044265,-817.96,0.00017123,2]
[330029891,1718955044274,-200.0,0.00017145,2]
[330029893,1718955044284,-2123.54811645,0.00017169,2]
[330029895,1718955044293,-299.54,0.00017174,2]
[330029897,1718955044302,-299.54,0.00017221,2]
[330029899,1718955044312,-299.54,0.00017268,2]
[330029901,1718955044324,-299.54,0.00017315,2]
[330029902,1718955044333,-493.47,0.00017316,2]
[330029904,1718955044343,-299.54,0.00017363,2]
[330029906,1718955044352,-167.0,0.0001739,2]
[330029908,1718955044364,-167.0,0.00017399,2]
[330029910,1718955044373,-299.54,0.0001741,2]
[330029912,1718955044383,-299.54,0.00017457,2]
[330029914,1718955044393,-299.54,0.00017504,2]
[330029916,1718955044402,-299.54,0.00017551,2]
[330029918,1718955044412,-299.54,0.00017598,2]
[330029920,1718955044421,-299.54,0.00017645,2]
[330029921,1718955044431,-299.54,0.00017692,2]
[330029923,1718955044441,-299.54,0.00017739,2]
[330029925,1718955044450,-299.54,0.00017786,2]
[330029927,1718955044460,-299.54,0.00017834,2]
[330029929,1718955044469,-299.54,0.00017881,2]
[330029931,1718955044479,-957.05841789,0.00017896,2]
[330029933,1718955044488,-299.54,0.00017928,2]
[330029935,1718955044497,-192.84,0.00017937,2]
[330029937,1718955044507,-299.54,0.00017975,2]
[330029939,1718955044517,-2123.54811645,0.00017986,2]
[330029941,1718955044526,-299.54,0.00018022,2]
[330029943,1718955044535,-299.54,0.00018069,2]
[330029945,1718955044544,-7149.0,0.000183,3]
[330029947,1718955044554,-1355.0,0.000184,3]
[330029949,1718955044563,-192.84,0.00018791,2]
[330029951,1718955044572,-2123.54811645,0.00018804,2]
[330029953,1718955044582,-167.0,0.00018825,2]
[330029955,1718955044591,-180.0,0.00018834,2]
[330029957,1718955044601,-510.34,0.00018849,30]
[330029959,1718955044611,-957.05841789,0.00018894,2]
[330029961,1718955044620,-2835.73944,0.00019,2]
[330029963,1718955044631,-500.0,0.00019178,2]
[330029965,1718955044640,-190.19161835,0.00019178,2]
[330029967,1718955044649,-500.0,0.00019178,2]
[330029969,1718955044659,-1000.0,0.00019226,2]
[330029971,1718955044668,-1000.0,0.00019385,2]
[330029973,1718955044677,-167.0,0.00019389,2]
[330029975,1718955044687,-838.51,0.00019573,2]
[330029976,1718955044696,-493.47,0.0001958,2]
[330029979,1718955044707,-2123.54811645,0.00019621,2]
[330029980,1718955044716,-192.84,0.00019645,2]
[330029982,1718955044726,-6023.87934699,0.000197,2]
[330029985,1718955044735,-957.05841789,0.00019893,2]
[330029986,1718955044744,-753.65324115,0.00019944,2]
[330029988,1718955044754,-5150.88444922,0.00019945,2]
[330029990,1718955044764,-730.59789517,0.00019999,2]
[330029992,1718955044774,-1278.63374008,0.0002,2]
[330029994,1718955044783,-365.12529025,0.0002,2]
[330029996,1718955044792,-11237.97045649,0.0002,2]
[330029998,1718955044801,-167.0,0.0002026,2]
[330030000,1718955044811,-2123.54811645,0.00020438,2]
[330030002,1718955044821,-192.84,0.00020499,2]
[330030004,1718955044830,-500.0,0.00020781,2]
[330030006,1718955044840,-827.0,0.00020781,2]
[330030008,1718955044849,-957.05841789,0.00020892,2]
[330030010,1718955044858,-1250.0,0.00021,2]
[330030012,1718955044867,-152.0,0.00021159,3]
[330030014,1718955044878,-456.569,0.00021192,2]
[330030016,1718955044888,-1303.0,0.00021192,2]
[330030018,1718955044897,-152.747,0.00021192,2]
[330030020,1718955044907,-2410.0,0.00021192,2]
[330030021,1718955044917,-1982.0,0.00021192,2]
[330030022,1718955044927,-547.0,0.00021192,2]
[330030023,1718955044936,-3198.0,0.00021192,2]
[330030024,1718955044945,-1830.0,0.00021192,2]
[330030025,1718955044954,-38133.0,0.00021192,2]
[330030026,1718955044964,-5164.0,0.00021192,2]
[330030027,1718955044973,-290.0,0.00021192,2]
[330030028,1718955044983,-1271.0,0.00021192,2]
[330030029,1718955044993,-1659.0,0.00021192,2]
[330030030,1718955045002,-1196.0,0.00021192,2]
[330030031,1718955045013,-359.0,0.00021192,2]
[330030033,1718955045023,-5794.0,0.00021192,2]
[330030035,1718955045033,-2123.54811645,0.00021255,2]
[330030037,1718955045042,-150.0,0.00021342,2]
[330030039,1718955045052,-1000.0,0.00021362,2]
[330030041,1718955045063,-5000.0,0.000216,4]
[330030043,1718955045075,-153.72,0.00021644,2]
[330030045,1718955045085,-510.89,0.00021644,2]
[330030047,1718955045094,-682.03,0.00021644,2]
[330030049,1718955045105,-155.0,0.000217,2]
[330030051,1718955045115,-493.47,0.00021844,2]
[330030053,1718955045124,-957.05841789,0.00021891,2]
[330030055,1718955045140,-1000.0,0.000219,2]
[330030056,1718955045150,-500.0,0.00021917,2]
[330030058,1718955045161,-3000.0,0.00021917,7]
[330030060,1718955045172,-1732.57,0.00021917,7]
[330030062,1718955045183,-154.55,0.00021918,2]
[330030064,1718955045194,-344.87,0.00021918,2]